Cogmind - Beta 13 *** ADVENTURER MODE // 2024.07.15 @ 08:32:50 Player: Jefffff Result: Self-destructed Performance ------------- Evolutions (1) 500 Regions Visited (2) 400 Robots Destroyed (40) 200 Value Destroyed (935) 935 Prototype IDs (3) 60 Alien Tech Used (0) 0 Bonus (0) 0 TOTAL SCORE: 2095 Bonus ------- None Cogmind --------- Core Integrity 123/400 Matter 217/300 Energy 460/460 System Corruption 0% Temperature Cool (0) Movement Core (400) Ox7 Location -9/Materials Parts ------- > --- POWER (2) -------- Cooled Ion Engine Cooled Ion Engine > --- PROPULSION (3) --- (None) > --- UTILITY (2) ------ Small Storage Unit Core Shielding > --- WEAPON (2) ------- (None) > --- INVENTORY (8) ---- Weight Redist. System Structural Scanner Sensor Array Signal Interpreter Mining Laser Peak State ------------ > --- POWER ------------ Cooled Ion Engine Cooled Ion Engine > --- PROPULSION ------- Light Treads Light Treads Light Treads > --- UTILITY ---------- Heat Sink Small Storage Unit > --- WEAPON ----------- Beam Rifle Improved Assault Rifle > --- INVENTORY -------- Cooled Ion Engine Cooled Ion Engine Weight Redist. System Structural Scanner Sensor Array Signal Interpreter Core Shielding Mining Laser [Rating: 17] Favorites ----------- Power Cooled Ion Engine Engine Cooled Ion Engine Propulsion Aluminum Leg Treads Light Treads Leg Aluminum Leg Utility Small Storage Unit Device ECM Suite Storage Small Storage Unit Protection Core Shielding Weapon Small Laser Energy Gun Small Laser Energy Cannon Advanced Beam Cannon Ballistic Gun Light Assault Rifle Special Weapon Mining Laser Build | -11 -10 -9 ------- Run | Yrd Mat Mat Slots Evolved 2 | . . 2 Power 1 | . . 1 Propulsion 1 | . . 1 Utility . | . . . Weapon . | . . . Parts Attached 48 | 10 14 24 Power 10 | 1 3 6 Engine 10 | 1 3 6 Core . | . . . Reactor . | . . . Propulsion 14 | 2 4 8 Treads 6 | . . 6 Leg 8 | 2 4 2 Wheel . | . . . Hover . | . . . Flight . | . . . Utility 10 | 4 4 2 Device 5 | 2 2 1 Storage 4 | 2 2 . Processor . | . . . Hackware . | . . . Protection 1 | . . 1 Artifact . | . . . Weapon 14 | 3 3 8 Energy Gun 5 | . 2 3 Energy Cannon 1 | . . 1 Ballistic Gun 7 | 3 1 3 Ballistic Cannon . | . . . Launcher . | . . . Special Weapon 1 | . . 1 Impact Weapon . | . . . Slashing Weapon . | . . . Piercing Weapon . | . . . Special Melee Weapon . | . . . Unidentified Prototypes 3 | . . 3 Parts Lost 12 | . 1 11 Power 1 | . 1 . Propulsion 5 | . . 5 Utility 2 | . . 2 Weapon 4 | . . 4 Highest Loss Streak 7 | . 1 7 To Critical Strikes . | . . . Average Slot Usage (%) 97 | . 98 96 Engine 17 | . 12 21 Treads 9 | . . 17 Leg 20 | . 28 14 Device 11 | . 14 9 Storage 12 | . 14 11 Energy Gun 10 | . 7 13 Energy Cannon 2 | . . 3 Ballistic Gun 10 | . 20 3 Naked Turns . | . . . Heaviest Build 86 | 16 86 29 Greatest Support 60 | 20 20 60 Greatest Overweight (x) 4 | 1 4 1 Average Overweight (x) . | . . . Largest Inventory Capacity 25 | 8 25 8 Average Capacity 8 | 7 9 8 Most Carried 9 | 8 9 8 Average Carried 6 | 3 7 6 Final Capacity 8 | 8 8 8 Final Carried 8 | 8 8 5 Class Distribution -------------------- 57% | Scavenger-Mutant 42% | Mutant Dominant Class ---------------- Mutant | -10/Materials Scavenger-Mutant | -9/Materials Resources | -11 -10 -9 ----------- Run | Yrd Mat Mat Matter Collected 787 | 270 298 219 Remotely . | . . . Salvage Created 1426 | 135 521 770 Parts 87 | 14 23 50 Haulers Intercepted 2 | . . 2 Recyclers Shooed 4 | . 3 1 Parts Field Recycled . | . . . Retrieved Matter . | . . . Parts Self-Destructed . | . . . Prevented . | . . . Kills | -11 -10 -9 ------- Run | Yrd Mat Mat Combat Hostiles Destroyed 21 | . 9 12 Guns 17 | . 9 8 Cannons 3 | . . 3 Classes Destroyed 9 | 2 3 4 Builder 1 | . . 1 Tunneler 4 | 4 . . Hauler 2 | . . 2 Recycler 4 | 1 3 . Operator 1 | . . 1 Watcher 7 | . 2 5 Swarmer 3 | . 3 . Grunt 13 | . 6 7 Sentry 5 | . . 5 Best Kill Streak 3 | 2 3 3 Combat Bots Only 3 | . 3 3 Max Kills in Single Turn 1 | 1 1 1 Gunslinging . | . . . Exploded . | . . . Melee . | . . . Uniques/NPCs Destroyed . | . . . Combat | -11 -10 -9 -------- Run | Yrd Mat Mat Hostile Shots Fired 259 | . 65 194 Missed 66 | . 18 48 Damage Taken 2054 | . 381 1673 Core 348 | . 71 277 Absorbed by Shields . | . . . Redirected to Shielding 24 | . . 24 Ignored by Resistances 598 | . 120 478 Core Remaining (%) 85 | 100 71 . Volleys Fired 136 | 11 51 74 Largest 2 | 2 2 2 Hottest 123 | 40 60 123 Shots Fired 263 | 22 102 139 Gun 219 | 22 102 95 Cannon 42 | . . 42 Launcher . | . . . Special 2 | . . 2 Kinetic 120 | 22 78 20 Thermal 143 | . 24 119 Explosive . | . . . Electromagnetic . | . . . Robot Hit Streak 60 | 9 23 60 Robot Miss Streak 3 | 2 3 2 Penetration Max . | . . . Secondary Targets 2 | . 2 . Max Gunslinging Chain 1 | . 1 . Shots Hit Robots 207 | 14 79 114 Core Hits 74 | 8 30 36 Critical Kills . | . . . Critical Parts Destroyed . | . . . Critical Strikes . | . . . Melee Attacks . | . . . Impact . | . . . Slashing . | . . . Piercing . | . . . Sneak Attacks . | . . . Combat Hostiles . | . . . Follow-up Attacks . | . . . Damage Inflicted 2606 | 158 724 1724 Guns 1923 | 158 717 1048 Cannons 615 | . . 615 Explosions . | . . . Melee . | . . . Ramming 20 | . 7 13 Kinetic 995 | 158 563 274 Thermal 1591 | . 154 1437 Explosive . | . . . Electromagnetic . | . . . Impact . | . . . Slashing . | . . . Piercing . | . . . Highest Corruption 1 | . 1 . Average Corruption 1 | . 1 . Corruption Purged . | . . . Corruption Blocked . | . . . Effects 1 | . 1 . Heat Flow Errors 1 | . 1 . Overload Shots . | . . . Overflow Damage 12 | . . 12 Projectiles 12 | . . 12 Explosions . | . . . Melee . | . . . Knockbacks . | . . . Impact . | . . . Kinetic . | . . . Secondary . | . . . Self-Inflicted Damage . | . . . Shots . | . . . Rammed . | . . . Targets Rammed 3 | . 1 2 Kicked 2 | . 1 1 Crushed 1 | . . 1 Highest Temperature 460 | . 84 460 Average Temperature 101 | . 13 126 Received Heat Transfer 1053 | . 177 876 Effects 7 | . . 7 Shutdowns 2 | . . 2 Energy Bleed 1 | . . 1 Matter Decay 1 | . . 1 Short Circuit 1 | . . 1 Damage (minor) 2 | . . 2 Siege Activations . | . . . Robots Corrupted . | . . . Combat Hostiles . | . . . Parts Fried . | . . . Impact Corruptions . | . . . Robots Melted 1 | . . 1 Combat Hostiles 1 | . . 1 Parts Melted 6 | . . 6 Heat Transferred 3367 | . 350 3017 Parts Sabotaged . | . . . Parts Stolen . | . . . Parts Stripped . | . . . Power Chain Reactions . | . . . Alert | -11 -10 -9 ------- Run | Yrd Mat Mat Peak Influence 242 | 25 242 224 Initial 13 | . 13 . Average 82 | 10 120 64 Maximum Alert Level 1 | . 1 1 Low Security (%) 97 | 100 99 96 Level 1 2 | . . 3 Level 2 . | . . . Level 3 . | . . . Level 4 . | . . . Level 5 . | . . . High Security . | . . . Max Security . | . . . Squads Dispatched 2 | . 2 . Investigation 2 | . 2 . Extermination . | . . . Reinforcement . | . . . Assault . | . . . Garrison . | . . . Intercept . | . . . Searches Triggered . | . . . Construction Impeded . | . . . Haulers Reinforced . | . . . Active Scanning Responses . | . . . Cargo Convoy Interrupts . | . . . Stealth | -11 -10 -9 --------- Run | Yrd Mat Mat Distress Signals 3 | . 1 2 Communications Jammed . | . . . Distress Signals . | . . . Times Spotted 38 | . 16 22 Peak Tracking Total 4 | . 3 4 Tactical Retreats 1 | . 1 . Traps | -11 -10 -9 ------- Run | Yrd Mat Mat Traps Triggered 1 | . 1 . Indirectly . | . . . Trap Hack Attempts . | . . . Triggered . | . . . Disarmed . | . . . Reprogrammed . | . . . Reused . | . . . Traps Extracted . | . . . Installed . | . . . Triggered . | . . . Machines | -11 -10 -9 ---------- Run | Yrd Mat Mat Machines Disabled 1 | . . 1 Max in Single Turn 1 | . . 1 Machines Repaired . | . . . Machines Dismantled . | . . . Machines Sabotaged . | . . . Overloaded Fab Kills . | . . . Hacking | -11 -10 -9 --------- Run | Yrd Mat Mat Machines Accessed 8 | . 4 4 Terminals 7 | . 3 4 Fabricators . | . . . Repair Stations . | . . . Recycling Units 1 | . 1 . Scanalyzers . | . . . Garrison Access . | . . . Total Hacks 23 | . 8 15 Successful 13 | . 7 6 Failed 10 | . 1 9 Catastrophic . | . . . Database Lockouts . | . . . Manual 18 | . 8 10 Terminals 21 | . 6 15 Fabricators . | . . . Repair Stations . | . . . Recycling Units 2 | . 2 . Scanalyzers . | . . . Garrison Access . | . . . Terminal Hacks . | . . . Fabricator Hacks . | . . . Repair Station Hacks . | . . . Recycling Unit Hacks . | . . . Scanalyzer . | . . . Garrison Access Hacks . | . . . Unauthorized Hacks 13 | . 7 6 Terminals 11 | . 5 6 Track 2 | . 1 1 Assimilate 1 | . . 1 Botnet 7 | . 3 4 Sabotage 1 | . 1 . Fabricators . | . . . Repair Stations . | . . . Recycling Units 2 | . 2 . Reject 1 | . 1 . Tunnel 1 | . 1 . Scanalyzers . | . . . Garrison Access . | . . . Data Cores Recovered . | . . . Used . | . . . Hacking Detections 5 | . 2 3 Full Trace Events . | . . . Feedback Events . | . . . Feedback Blocked . | . . . Robot Schematics Acquired . | . . . Robots Built . | . . . Authchips . | . . . Time . | . . . Total Robot Build Rating . | . . . Part Schematics Acquired . | . . . Parts Built . | . . . Authchips . | . . . Time . | . . . Total Part Build Rating . | . . . Parts Repaired . | . . . Time . | . . . Parts Recycled . | . . . Recycled Matter . | . . . Retrieved Matter . | . . . Retrieved Components . | . . . Parts Scanalyzed . | . . . Part Schematics Acquired . | . . . Parts Damaged . | . . . Bothacking | -11 -10 -9 ------------ Run | Yrd Mat Mat Used RIF Installer . | . . . Robots Hacked . | . . . Non-combat . | . . . Combat . | . . . Robot Hacks Applied . | . . . Relay Couplers Released . | . . . Fabnet Peak Effective % . | . . . Robots Rewired . | . . . Allies Hacked . | . . . Hacks Repelled . | . . . Allies | -11 -10 -9 -------- Run | Yrd Mat Mat Total Allies . | . . . Largest Group . | . . . Highest-Rated Group . | . . . Highest-Rated Ally . | . . . Total Orders . | . . . Ally Attacks . | . . . Total Damage . | . . . Kills . | . . . Allies Corrupted . | . . . Allies Melted . | . . . Intel | -11 -10 -9 ------- Run | Yrd Mat Mat Robot Analysis Total . | . . . Derelict Logs Recovered . | . . . Drone Launches . | . . . Drone Recoveries . | . . . Exploration | -11 -10 -9 ------------- Run | Yrd Mat Mat Turns Passed 2021 | 165 802 1054 Spaces Moved 1065 | 101 477 487 Core 22 | 22 . . Treads 273 | . . 273 Legs 770 | 79 477 214 Wheels . | . . . Hover . | . . . Flight . | . . . Fastest Speed 50 | 50 120 120 Average Speed 132 | 106 126 144 Slowest Speed 400 | 120 400 240 Overloaded Moves . | . . . Propulsion Burnouts . | . . . Robots Hopped . | . . . Cave-ins Triggered . | . . . Exploration Rate (%) 36 | 5 66 39 Regions Visited 2 Branch Regions . Pre-discovered Areas 1 | . 1 . Known Exits Taken . | . . . Unknown Exits Taken 2 | 1 1 . Scrap Searched . | . . . Spaces Dug . | . . . Terrain Destroyed . | . . . Melee . | . . . Projectile . | . . . AOE . | . . . Terrain Rammed . | . . . Walls Destroyed . | . . . Machines Disabled . | . . . Actions | -11 -10 -9 --------- Run | Yrd Mat Mat Total 1430 | 138 591 701 Wait 104 | . 25 79 Move 1063 | 100 476 487 Hop . | . . . Pick Up 38 | 14 9 15 Fast Attach 11 | 4 2 5 Attach 17 | 5 . 12 Detach 1 | . . 1 Swap 20 | 1 12 7 Drop 37 | 3 15 19 Fire 136 | 11 51 74 Melee . | . . . Ram . | . . . Kick 2 | . 1 1 Crush 1 | . . 1 Escape Stasis . | . . . Rewire . | . . . Trap . | . . . Miscellaneous . | . . . Route ------- -11/Scrapyard -10/Materials (discovered 2 exits: *Mat / [*Min]) -9/Materials History --------- Turn | Location | Event 5 | -11/Scrapyard | Discovered new exit (range 15) 166 | -11/Scrapyard | Entered Materials 309 | -10/Materials | Build established: Mutant 661 | -10/Materials | Discovered new exit (range 14) 962 | -10/Materials | Discovered new exit (range 5) 968 | -10/Materials | Entered another Materials area 968 | -9/Materials | Evolved 2 slots: Power x1, Propulsion x1 1271 | -9/Materials | Build established: Scavenger-Mutant 1997 | -9/Materials | Core integrity fell below 50% 2022 | -9/Materials | Self-destructed Last Messages --------------- 01975_ U-05 Engineer lays Concrete. 01975_ U-05 Engineer builds a Wall. 01976_ The unstable cave ceiling collapses. 01976_ U-05 Engineer lays Concrete. 01978_ K-01 Serf collects debris. 01979_ U-05 Engineer builds a Wall. 01979_ Dropped Cld. Ion Engine. 01981_ K-01 Serf collects debris. 01982_ U-05 Engineer lays Concrete. 01983_ The unstable cave ceiling collapses. 01983_ U-05 Engineer builds a Wall. 01986_ U-05 Engineer lays Concrete. 01991_ U-05 Engineer builds a Wall. 01992_ U-05 Engineer lays Concrete. 01994_ U-05 Engineer builds a Wall. 01998_ Lgt. Treads destroyed. 02002_ Critical hit (Burn: +37). 02011_ K-01 Serf collects debris. 02014_ U-05 Engineer builds a Wall. 02021_ Lgt. Treads destroyed. Map ----- +----------------------------------------------------+ | ?????????### #?????## ##? | | ?????????###+#####??# #??##### | | ?????????? ??# ######## | | ??????????? ?# + ] | | ???????????? ?# # | | ????????????" """ # #??""" " | | ????????????" """ # # """""" | | ????????????" """ + + """ | | ????????? # # | | ????????############# ##?##### | | ??????????# """ # #?????? | | ??????????# "R" # #?????? | | ????????### " " + #?????? | | ????????# # #?????? | | ????????# = # #?????? | | ????????###*% ## ##??#### | | ????????# #[** ## ##### | | ????????# # ## | | ####????# # ## | | # ???# #+###### ## | | # ???# # # # ##### ###### | | # ?#### #### #??? #????#### | | # ?# u####??# ##??????? | | # # ##### #?????? | | # # k #?????? | | #= @ a +?????? | | # # g #?????? | | # # g Y ##### #?????? | | # ?# #?????#####?????? | | # ?####+#########??????????? | | # ??# #??????????? | | # ??# """ """ #??????????? | | # ???# """ """ #??????????? | | ####???# """ """ #??????????? | | ???????# #??????????? | | ???????##############??????????? | | ???????????????????????????????? | | ???????????????????????????????? | | ???????????????????????????????? | | ???????????????????????????????? | | ???????????????????????????????? | | ???????????????????????????????? | | ???????????????????????????????? | | ???????????????????????????????? | | ???????????????????????????????? | | ???????????????????????????????? | | ???????????????????????????????? | | ???????????????????????????????? | | ???????????????????????????????? | | ???????????????????????????????? | +----------------------------------------------------+ Best States ------------- Heat Dissipation 38 Energy Generation 23 Energy Capacity 460 Matter Stores 300 Matter Capacity 300 Sight Range 16 Terrain Scan Range 16 Terrain Scan Density 10 ECM Strength 1 Resistance: KI 20 Resistance: TH 20 Resistance: EX 20 Resistance: EM 20 Resistance: I 20 Resistance: S 20 Resistance: P 20 Core Shielding 20 Evasion (%) 55 Recoil Reduction 3 Offensive Hacking 10 Item Schematics ----------------- None Robot Schematics ------------------ None Fabricated ------------ Nothing Alien Tech Used ----------------- None Achievements -------------- None Challenges ------------ None Game ------ Seed CloakingPowerLaser Manual? 0 Play Time 00:18:29 Cumulative 28.2 hours Start 2024.07.15 @ 07:46:36 End 2024.07.15 @ 08:32:50 Sessions 1 Manual Loads 0 Difficulty Adventurer Special Mode None Game No. 44 Rogue 0 Adventurer 44 Explorer 0 Win Type - Total 0 Types 0/0/0/0/0/0/0/0/0 Lore% 35 Gallery% 32 Achievement% 25 Wizard Run 0 Options --------- Layout 2 ASCII 0 Keyboard 0 Movement Mouse Keybinds 0 Fullscreen 2 Font 48/Smallcaps Map View 25x22 Zoom Use 100% Tactical HUD 1 Map Filters NONE Filters NONE Steam 1 RUN: 44934b4b-77ed-452e-bf1c-5b029db729c3